fUSD/lending_fUSD_20251030
["ID","MTS","AMOUNT","RATE_DAILY","PERIOD"]
[392706976,1761837049469,-1647.63,0.000295,7]
[392706977,1761837049478,-997.56,0.000295,7]
[392706978,1761837049488,-1004.0,0.000295,2]
[392706979,1761837049497,-1500.0,0.000295,2]
[392706980,1761837049506,-14926.8,0.00029519,2]
[392706981,1761837049516,-500.0,0.00029589,3]
[392706982,1761837049526,-374.89,0.00029589,14]
[392706983,1761837049536,-750.0,0.00029589,2]
[392706984,1761837049545,-750.0,0.00029589,2]
[392706985,1761837049555,-500.0,0.00029618,7]
[392706986,1761837049564,-1000.0,0.00029632,7]
[392706987,1761837049574,-217.12,0.00029652,30]
[392706988,1761837049584,-500.0,0.00029669,7]
[392706989,1761837049595,-500.0,0.00029751,7]
[392706990,1761837049609,-152.0,0.00029779,23]
[392706991,1761837049620,-200.0,0.00029779,2]
[392706992,1761837049631,-500.0,0.00029779,7]
[392706993,1761837049643,-500.0,0.00029863,3]
[392706994,1761837049857,-374.89,0.00029863,14]
[392706995,1761837049868,-750.0,0.00029863,2]
[392706996,1761837049878,-750.0,0.00029863,2]
[392706997,1761837049888,-569.97,0.00029882,15]
[392706998,1761837049898,-62310.98331971,0.000299,2]
[392706999,1761837049908,-500.0,0.00029936,7]
[392707000,1761837049919,-500.0,0.00029946,7]
[392707001,1761837049930,-233.77731879,0.0002999,2]
[392707002,1761837049940,-69588.98644344,0.00029999,2]
[392707003,1761837049951,-300.0,0.00029999,10]
[392707004,1761837049961,-7697.0,0.0003,2]
[392707005,1761837049970,-10000.0,0.0003,10]
[392707006,1761837049981,-750.0,0.0003,10]
[392707007,1761837049991,-1000.0,0.0003,23]
[392707008,1761837050000,-5691.14068206,0.0003,3]
[392707009,1761837050010,-50799.93894698,0.0003,2]
[392707010,1761837050019,-1517883.52655056,0.0003,2]
[392707011,1761837050203,-165.5077963,0.00024773,2]
[392707012,1761837050213,-10563.79350582,0.0003,2]
[392707013,1761837050224,-1080.63208,0.0003,2]
[392707014,1761837050238,-9182.89360635,0.0003,2]
[392707015,1761837050253,-10891.64815684,0.0003,2]
[392707016,1761837050268,-2426.592,0.0003,2]
[392707019,1761837361772,400.0,0.0003,120]
[392707020,1761837416580,1000.0,0.00031506,120]
[392707022,1761837578868,155.58,7.465e-05,2]
[392707023,1761837579085,155.58,0.00011198,2]
[392707024,1761837579413,155.58,0.00014931,2]
[392707030,1761837831023,162.5,0.000255,120]
[392707031,1761837873514,1157.17065454,0.00031,120]
[392707035,1761837908150,35864.70030045,0.00015,2]
[392707043,1761838010418,150.0,0.000161,120]
[392707045,1761838021152,500.04,0.00029999,120]
[392707046,1761838021404,500.04,0.00030126,120]
[392707047,1761838021661,500.04,0.00030949,120]
[392707048,1761838021936,500.04,0.00031231,120]
[392707051,1761838073658,1511570.58883207,0.00015,2]
[392707054,1761838088597,600.91,0.00013699,2]
[392707075,1761838122512,159.59555335,0.00031,120]
[392707076,1761838203663,150.0,0.000161,120]
[392707256,1761838240608,-2093.16995864,0.000162,5]
[392707265,1761838243663,-500.165312,0.000162,5]
[392707279,1761838246336,-1079.4316,0.000162,5]
[392707305,1761838247459,-1327.237858,0.000162,5]
[392707306,1761838247469,-250.0,0.0001666,2]
[392707307,1761838247479,-150.0,0.0001666,2]
[392707308,1761838247488,-250.0,0.00017,2]
[392707309,1761838247499,-250.0,0.00017107,2]
[392707310,1761838247513,-168.0,0.0001724,2]
[392707311,1761838247522,-168.0,0.00017385,2]
[392707312,1761838247532,-250.0,0.0001782,2]
[392707313,1761838247546,-1000.0,0.00018082,2]
[392707314,1761838247555,-1200.0,0.00018759,2]
[392707315,1761838247565,-1000.0,0.0001876,2]
[392707316,1761838247574,-300.0,0.00019,2]
[392707317,1761838247584,-187.78006526,0.00019178,2]
[392707318,1761838247593,-1000.0,0.00019438,2]
[392707319,1761838247602,-215.2,0.000195,2]
[392707320,1761838247612,-300.0,0.00019998,2]
[392707321,1761838247621,-850.0,0.00019999,2]
[392707322,1761838247631,-500.0,0.00019999,2]
[392707323,1761838247640,-320.88329651,0.00019999,2]
[392707324,1761838247650,-1156.60464357,0.0002,2]
[392707325,1761838247659,-11672.87231447,0.0002,2]
[392707326,1761838247672,-40396.47070666,0.0002,5]
[392707327,1761838247681,-1281.74383966,0.0002,2]
[392707328,1761838247691,-7302.54014387,0.0002,2]
[392707329,1761838247702,-2835.35525359,0.0002,2]
[392707330,1761838247712,-414.89464363,0.0002,2]
[392707331,1761838247721,-8998.73750829,0.0002001,2]
[392707332,1761838247731,-1000.0,0.00020052,2]
[392707333,1761838247740,-1000.0,0.00020116,2]
[392707334,1761838247749,-600.91,0.00020187,2]
[392707335,1761838247759,-165.05,0.0002037,2]
[392707336,1761838247768,-1680.0,0.00020552,2]
[392707337,1761838247777,-22430.62556273,0.000207,2]
[392707338,1761838247787,-1000.0,0.00020795,2]
[392707339,1761838247798,-1445.0,0.00020999,2]
[392707340,1761838247807,-12707.20615643,0.00021,2]
[392707341,1761838247817,-38253.02411232,0.00021,2]
[392707345,1761838394329,150.0,0.000161,120]
[392707346,1761838583099,150.0,0.000161,120]
[392707348,1761838771746,150.0,0.000161,120]
[392707349,1761838959229,150.0,0.000161,120]
[392707350,1761839147013,192.31,0.000161,120]
[392707351,1761839176340,500.0,0.00029489,120]
[392707352,1761839176597,500.0,0.00029499,120]
[392707354,1761839306508,506.3469103,0.00029489,120]
[392707355,1761839363132,-565.917,0.00017864,2]
[392707356,1761839363154,-250.0,0.00018682,2]
[392707357,1761839363176,-250.0,0.00019329,2]
[392707358,1761839363197,-151.0,0.000195,2]
[392707359,1761839363220,-151.0,0.000195,2]
[392707360,1761839363241,-250.0,0.0001965,2]
[392707361,1761839363266,-204.6992929,0.00020048,2]
[392707364,1761839431652,-185.16701361,0.00020604,2]
[392707365,1761839431662,-250.0,0.00020639,2]
[392707366,1761839431672,-314.71328558,0.00020639,2]
[392707367,1761839431681,-677.12865079,0.00020674,2]
[392707368,1761839431693,-215.54473643,0.00020674,2]
[392707369,1761839431702,-35.82422421,0.000207,2]
[392707370,1761839431714,-2464.66218,0.000207,2]
[392707371,1761839431726,-574.20574106,0.000207,2]
[392707372,1761839431736,-250.0,0.00020835,2]
[392707373,1761839431745,-1000.0,0.000209,2]
[392707374,1761839431754,-300.0,0.00020999,2]
[392707375,1761839431763,-300.0,0.00020999,2]
[392707376,1761839431772,-1200.0,0.00020999,2]
[392707377,1761839431782,-1756.15701478,0.00021,2]
[392707378,1761839431797,-1365.3666151,0.00021,2]
[392707379,1761839431806,-1181.08113762,0.00021,2]
[392707380,1761839431815,-194.95412646,0.00021,2]
[392707381,1761839431825,-160.0,0.00021,7]
[392707382,1761839431835,-350.0,0.00021,2]
[392707383,1761839431844,-417.0,0.000211,2]
[392707384,1761839431854,-165.05,0.00021491,2]
[392707385,1761839431865,-152.51406322,0.000215,2]
[392707415,1761839437876,-406.69530922,0.000215,2]
[392707419,1761839437887,-196.7220248,0.000215,2]
[392707421,1761839437900,-23.08725737,0.000215,2]
[392707423,1761839437911,-500.0,0.00021671,2]
[392707424,1761839437922,-16.35164263,0.0002172,2]
[392707425,1761839437986,-209.07981737,0.0002172,2]
[392707426,1761839437998,-225.43147,0.0002172,2]
[392707427,1761839438009,-225.43147,0.0002176,2]
[392707428,1761839438019,-225.43147,0.0002179,2]
[392707429,1761839438031,-225.43146,0.0002182,2]
[392707430,1761839438042,-477.13749083,0.00021824,2]
[392707431,1761839438053,-9.14061473,0.0002185,2]
[392707432,1761839438067,-216.29085527,0.0002185,2]
[392707434,1761839438078,-1100.0,0.00021917,2]
[392707435,1761839438090,-600.0,0.00021918,4]
[392707436,1761839438101,-600.0,0.00021918,4]
[392707437,1761839438112,-600.0,0.00021918,4]
[392707438,1761839438123,-600.0,0.00021918,4]
[392707439,1761839438134,-600.0,0.00021918,4]
[392707440,1761839438145,-600.0,0.00021918,4]
[392707441,1761839438157,-600.0,0.00021918,4]
[392707442,1761839438168,-600.0,0.00021918,4]
[392707444,1761839438179,-170.0,0.00022,2]
[392707447,1761839438190,-204.0,0.00022,2]
[392707449,1761839438201,-204.0,0.00022192,7]
[392707451,1761839438212,-200.0,0.00022549,2]
[392707453,1761839438223,-500.0,0.00022549,2]
[392707455,1761839438234,-500.0,0.00022549,2]
[392707457,1761839438246,-500.0,0.00022549,2]
[392707460,1761839438257,-200.0,0.00022549,2]
[392707462,1761839438268,-500.0,0.00022549,2]
[392707464,1761839438283,-500.0,0.00022549,2]
[392707466,1761839438294,-208.75050563,0.00022549,2]
[392707468,1761839438304,-200.0,0.00022549,2]
[392707470,1761839438316,-150.0,0.000226,2]
[392707472,1761839438327,-165.05,0.00022612,2]
[392707475,1761839438339,-209.13,0.00022641,2]
[392707477,1761839438351,-250.0,0.00022664,2]
[392707479,1761839438363,-200.0,0.00022664,2]
[392707481,1761839438374,-65.6661788,0.0002271,2]
[392707483,1761839438389,-451.80627468,0.0002271,2]
[392707486,1761839438400,-1870.0,0.00022793,2]
[392707488,1761839438412,-359.00661306,0.00022842,2]
[392707583,1761839439733,-60.99338694,0.00022842,2]
[392707584,1761839439744,-301.0,0.00022842,2]
[392707585,1761839439755,-208.40238271,0.00022889,2]
[392707586,1761839439765,-759.68662911,0.000229,2]
[392707587,1761839439777,-5253.41323589,0.000229,2]
[392707588,1761839439790,-1244.1148132,0.000229,2]
[392707589,1761839439826,-322.86011335,0.000229,2]
[392707590,1761839440065,-2545.67261903,0.000229,2]
[392707591,1761839440076,-1680.0,0.00022951,2]
[392707592,1761839440087,-201.29705626,0.00022999,2]
[392707593,1761839440097,-403.40529808,0.00022999,2]
[392707594,1761839440107,-500.0,0.00022999,2]
[392707595,1761839440119,-500.0,0.00022999,2]
[392707596,1761839440129,-500.0,0.00022999,2]
[392707597,1761839440139,-243.15154808,0.00022999,2]
[392707598,1761839440150,-500.0,0.00022999,2]
[392707600,1761839440161,-500.0,0.00022999,2]
[392707602,1761839440171,-500.0,0.00022999,2]
[392707603,1761839440182,-500.0,0.00022999,2]
[392707604,1761839440192,-36266.46697547,0.00023,2]
[392707605,1761839440203,-400.0,0.00023,2]
[392707606,1761839440213,-204.0,0.00023014,7]
[392707607,1761839440224,-200.0,0.00023097,2]
[392707608,1761839440234,-200.0,0.00023097,2]
[392707610,1761839440244,-9999.99,0.00023368,2]
[392707612,1761839440255,-299.99,0.00023368,7]
[392707614,1761839440266,-203.15143405,0.00023645,2]
[392707615,1761839440280,-250.0,0.00023658,2]
[392707616,1761839440291,-1600.0,0.00023714,2]
[392707617,1761839440301,-165.05,0.00023733,2]
[392707618,1761839440311,-15190.0,0.00023806,2]
[392707619,1761839440322,-1507.53,0.00023836,2]
[392707620,1761839440333,-5000.0,0.00023887,2]
[392707621,1761839440343,-1000.0,0.00023916,2]
[392707622,1761839440357,-500.0,0.00024106,2]
[392707623,1761839440369,-205.0,0.00024164,7]
[392707624,1761839440380,-241.0,0.00024308,2]
[392707625,1761839440397,-616.23,0.00024658,2]
[392707626,1761839440419,-587.0,0.00024847,2]
[392707627,1761839440444,-500.0,0.00024987,2]
[392707628,1761839440468,-150.0,0.00024987,2]
[392707629,1761839440490,-150.0,0.00024987,2]
[392707630,1761839440514,-150.0,0.00024987,2]
[392707631,1761839440536,-150.0,0.00024987,2]
[392707632,1761839440559,-150.0,0.00024987,2]
[392707633,1761839440581,-150.59825921,0.00024987,2]
[392707634,1761839440601,-500.0,0.00024987,2]
[392707635,1761839440612,-624.16019572,0.00024987,2]
[392707636,1761839440625,-500.0,0.00024987,2]
[392707637,1761839440636,-500.0,0.00024987,2]
[392707638,1761839440647,-150.0,0.00024987,2]
[392707639,1761839440658,-150.0,0.00024987,2]
[392707640,1761839440668,-150.0,0.00024987,2]
[392707641,1761839440679,-150.0,0.00024987,2]
[392707642,1761839440689,-500.0,0.00024987,2]
[392707643,1761839440699,-500.0,0.00024987,2]
[392707644,1761839440710,-500.0,0.00024987,2]
[392707645,1761839440721,-500.0,0.00024987,2]
[392707646,1761839440732,-500.0,0.00024987,2]
[392707647,1761839440742,-500.0,0.00024999,2]
[392707648,1761839440752,-500.0,0.00024999,2]
[392707649,1761839440764,-1002.6795,0.00024999,2]
[392707650,1761839440774,-450.0,0.00025,2]
[392707651,1761839440785,-7474.0,0.00025,3]
[392707652,1761839440796,-1151.85,0.00025,2]
[392707653,1761839440807,-250.0,0.0002504,2]
[392707654,1761839440818,-500.0,0.0002504,2]
[392707655,1761839440829,-308.15694195,0.0002504,2]
[392707656,1761839440839,-250.0,0.0002504,2]
[392707657,1761839440850,-250.0,0.0002504,2]
[392707658,1761839440860,-500.0,0.0002504,2]
[392707659,1761839440876,-250.0,0.0002504,2]
[392707660,1761839440886,-250.0,0.0002504,2]
[392707661,1761839440897,-500.0,0.0002504,2]
[392707662,1761839440907,-250.0,0.0002504,2]
[392707663,1761839440917,-500.0,0.0002504,2]
[392707664,1761839440927,-250.0,0.0002504,2]
[392707665,1761839440938,-250.0,0.0002504,2]
[392707666,1761839440948,-500.0,0.0002504,2]
[392707667,1761839440958,-500.0,0.0002504,2]
[392707668,1761839440968,-250.0,0.0002504,2]
[392707669,1761839440979,-500.0,0.0002504,2]
[392707670,1761839440989,-500.0,0.0002504,2]
[392707671,1761839441000,-152.56292513,0.0002504,2]
[392707672,1761839441010,-500.0,0.0002504,2]
[392707673,1761839441021,-500.0,0.0002504,2]
[392707674,1761839441031,-500.0,0.0002504,2]
[392707675,1761839441042,-500.0,0.0002504,2]
[392707676,1761839441052,-500.0,0.0002504,2]
[392707677,1761839441062,-500.0,0.0002504,2]
[392707678,1761839441073,-500.0,0.0002504,2]
[392707679,1761839441083,-500.0,0.0002504,2]
[392707680,1761839441092,-500.0,0.0002504,2]
[392707681,1761839441103,-154.16430345,0.0002504,2]
[392707682,1761839441113,-500.0,0.0002504,2]
[392707683,1761839441126,-500.0,0.0002504,2]
[392707684,1761839441136,-500.0,0.0002504,2]
[392707685,1761839441146,-500.0,0.0002504,2]
[392707686,1761839441156,-500.0,0.0002504,2]
[392707687,1761839441166,-250.0,0.0002504,2]
[392707688,1761839441177,-500.0,0.0002504,2]
[392707689,1761839441187,-250.0,0.0002504,2]
[392707690,1761839441198,-286.5032696,0.0002504,2]
[392707691,1761839441208,-574.12855637,0.0002504,2]
[392707692,1761839441219,-250.0,0.0002504,2]
[392707693,1761839441229,-250.0,0.0002504,2]
[392707694,1761839441239,-250.0,0.0002504,2]
[392707695,1761839441250,-250.0,0.0002504,2]
[392707696,1761839441260,-250.0,0.0002504,2]
[392707697,1761839441272,-250.0,0.0002504,2]
[392707698,1761839441288,-500.0,0.0002504,2]
[392707699,1761839441298,-346.92554585,0.0002504,2]
[392707700,1761839441309,-209.40437684,0.0002504,2]
[392707701,1761839441322,-620.0,0.0002504,2]
[392707702,1761839441332,-250.0,0.0002504,2]
[392707703,1761839441343,-250.0,0.0002504,2]
[392707704,1761839441355,-2351.0,0.00025084,2]
[392707705,1761839441367,-500.0,0.00025124,2]
[392707706,1761839441378,-150.0,0.00025124,2]
[392707707,1761839441389,-150.0,0.00025124,2]
[392707708,1761839441399,-150.0,0.00025124,2]
[392707709,1761839441410,-205.4978853,0.00025124,2]
[392707710,1761839441929,-500.0,0.00025124,2]
[392707711,1761839441959,-500.0,0.00025124,2]
[392707712,1761839441980,-150.0,0.00025124,2]
[392707713,1761839441989,-150.0,0.00025124,2]
[392707714,1761839441999,-150.0,0.00025124,2]
[392707715,1761839442008,-500.0,0.00025124,2]
[392707716,1761839442017,-500.0,0.00025124,2]
[392707717,1761839442027,-500.0,0.00025124,2]
[392707718,1761839442036,-500.0,0.00025124,2]
[392707719,1761839442048,-500.0,0.00025124,2]
[392707720,1761839442060,-2569.52,0.00025255,2]
[392707721,1761839442074,-500.0,0.00025261,2]
[392707722,1761839442083,-150.0,0.00025261,2]
[392707723,1761839442093,-150.0,0.00025261,2]
[392707724,1761839442102,-229.91013889,0.00025261,2]
[392707725,1761839442112,-500.0,0.00025261,2]
[392707726,1761839442124,-500.0,0.00025261,2]
[392707727,1761839442133,-201.00446989,0.00025261,2]
[392707728,1761839442143,-200.0,0.00025261,2]
[392707729,1761839442152,-150.0,0.00025261,2]
[392707730,1761839442161,-500.0,0.00025261,2]
[392707731,1761839442170,-500.0,0.00025261,2]
[392707732,1761839442180,-500.0,0.00025261,2]
[392707733,1761839442189,-500.0,0.00025261,2]
[392707734,1761839442199,-500.0,0.00025261,2]
[392707735,1761839442208,-207.4,0.00025288,2]
[392707736,1761839442219,-500.0,0.00025398,2]
[392707737,1761839442228,-153.96783187,0.00025398,2]
[392707738,1761839442237,-178.11686944,0.00025398,2]
[392707739,1761839442246,-500.0,0.00025398,2]
[392707740,1761839442256,-500.0,0.00025398,2]
[392707741,1761839442265,-204.49581406,0.00025398,2]
[392707742,1761839442278,-500.0,0.00025398,2]
[392707743,1761839442287,-500.0,0.00025398,2]
[392707744,1761839442296,-500.0,0.00025398,2]
[392707745,1761839442306,-503.70345501,0.00025435,2]
[392707746,1761839442315,-15280.0,0.00025463,7]
[392707747,1761839442324,-477.13749083,0.00025463,7]
[392707748,1761839442334,-1151.85,0.000255,2]
[392707749,1761839442343,-500.0,0.00025535,2]
[392707750,1761839442356,-374.49152338,0.00025535,2]
[392707751,1761839442365,-385.33370736,0.00025535,2]
[392707752,1761839442377,-500.0,0.00025535,2]
[392707753,1761839442386,-500.0,0.00025535,2]
[392707754,1761839442395,-500.0,0.00025535,2]
[392707756,1761839442404,-595.37131296,0.00025588,2]
[392707758,1761839442415,-217.15233878,0.00025588,2]
[392707759,1761839442424,-642.94,0.00025588,2]
[392707761,1761839442434,-500.0,0.00025672,2]
[392707762,1761839442443,-500.0,0.00025672,2]
[392707763,1761839442453,-598.81002238,0.00025672,2]
[392707764,1761839442463,-500.0,0.00025672,2]
[392707766,1761839442473,-500.0,0.00025699,2]
[392707768,1761839442483,-204.0,0.00025775,7]
[392707770,1761839442493,-500.0,0.00025809,2]
[392707772,1761839442502,-500.0,0.00025809,2]
[392707774,1761839442512,-500.0,0.00025809,2]
[392707776,1761839442521,-500.0,0.00025946,2]
[392707778,1761839442531,-500.0,0.00025946,2]
[392707780,1761839442540,-500.0,0.00025946,2]
[392707782,1761839442550,-324.34710962,0.00026,4]
[392707784,1761839442559,-1151.85,0.00026,30]
[392707786,1761839442568,-750.0,0.00026027,2]
[392707788,1761839442577,-750.0,0.00026027,2]
[392707790,1761839442586,-500.0,0.00026083,2]
[392707792,1761839442596,-264.74572133,0.00026083,2]
[392707794,1761839442606,-500.0,0.00026083,2]
[392707796,1761839442615,-617.40005154,0.00026136,2]
[392707798,1761839442627,-225.18697532,0.00026136,2]
[392707799,1761839442636,-666.72878,0.00026136,2]
[392707800,1761839442646,-500.0,0.0002622,2]
[392707801,1761839442655,-500.0,0.0002622,2]
[392707802,1761839442664,-2946.0,0.000263,5]
[392707803,1761839442675,-750.0,0.00026301,2]
[392707805,1761839442685,-750.0,0.00026301,2]
[392707806,1761839442694,-500.0,0.00026357,2]
[392707807,1761839442704,-500.0,0.00026357,2]
[392707808,1761839442713,-500.0,0.00026399,2]
[392707809,1761839442723,-430.26946423,0.00026493,2]
[392707810,1761839442732,-500.0,0.00026494,2]
[392707811,1761839442742,-500.0,0.00026494,2]
[392707812,1761839442751,-1151.85,0.000265,30]
[392707813,1761839442760,-750.0,0.00026575,2]
[392707814,1761839442769,-750.0,0.00026575,2]
[392707815,1761839442778,-395.46108518,0.00026631,2]
[392707816,1761839442788,-500.0,0.00026631,2]
[392707817,1761839442798,-600.91,0.00026676,2]
[392707818,1761839442807,-640.24385345,0.00026684,2]
[392707819,1761839442817,-233.51889341,0.00026684,2]
[392707820,1761839442826,-691.39774486,0.00026684,2]
[392707821,1761839442836,-503.70345494,0.00026738,2]
[392707822,1761839442846,-500.0,0.00026768,2]
[392707823,1761839442855,-250.0,0.00026849,2]
[392707824,1761839442864,-750.0,0.00026849,2]
[392707825,1761839442875,-750.0,0.00026849,2]
[392707826,1761839442884,-500.0,0.00026876,7]
[392707827,1761839442894,-411.8704887,0.00026905,2]
[392707828,1761839442904,-1000.0,0.00026905,2]
[392707829,1761839442913,-368.7066386,0.00026999,2]
[392707830,1761839442923,-500.0,0.00027,2]
[392707831,1761839442932,-1151.85,0.00027,30]
[392707832,1761839442941,-450.0,0.00027014,3]
[392707833,1761839442951,-823.0,0.00027028,2]
[392707834,1761839442960,-750.0,0.00027123,2]
[392707835,1761839442969,-750.0,0.00027123,2]
[392707836,1761839442979,-663.93287602,0.00027232,2]
[392707837,1761839442988,-310.33957359,0.00027232,2]
[392707838,1761839442998,-408.33955435,0.00027232,2]
[392707839,1761839443007,-204.0,0.00027386,7]
[392707840,1761839443016,-616.23,0.00027397,2]
[392707841,1761839443026,-1427.1,0.00027397,2]
[392707842,1761839443036,-750.0,0.00027397,2]
[392707843,1761839443045,-750.0,0.00027397,2]
[392707844,1761839443054,-300.0,0.00027397,2]
[392707845,1761839443063,-3292.0,0.00027415,2]
[392707846,1761839443072,-15000.0,0.00027463,7]
[392707847,1761839443081,-1151.85,0.000275,30]
[392707848,1761839443090,-204.0,0.00027616,14]
[392707849,1761839443099,-750.0,0.00027671,2]
[392707850,1761839443108,-750.0,0.00027671,2]
[392707851,1761839443117,-452.52,0.00027671,30]
[392707852,1761839443127,-500.0,0.0002776,7]
[392707853,1761839443137,-688.49839244,0.0002778,2]
[392707854,1761839443147,-750.0,0.00027945,2]
[392707855,1761839443156,-750.0,0.00027945,2]
[392707856,1761839443165,-500.0,0.00027961,7]
[392707857,1761839443175,-153.49590785,0.00028027,2]
[392707858,1761839443184,-1462.0,0.0002804,5]
[392707859,1761839443194,-503.70345494,0.0002804,2]
[392707860,1761839443204,-750.0,0.00028219,2]
[392707861,1761839443213,-750.0,0.00028219,2]
[392707862,1761839443222,-218.52268229,0.00028328,2]
[392707863,1761839443231,-750.0,0.00028493,2]
[392707864,1761839443240,-750.0,0.00028493,2]
[392707865,1761839443250,-750.0,0.00028767,2]
[392707866,1761839443259,-750.0,0.00028767,2]
[392707867,1761839443268,-500.0,0.00028833,7]
[392707868,1761839443282,-500.0,0.00028939,7]
[392707869,1761839443291,-204.0,0.00028997,14]
[392707870,1761839443301,-550.0,0.00029,2]
[392707871,1761839443312,-180.0,0.00029,2]
[392707872,1761839443323,-750.0,0.00029041,2]
[392707873,1761839443332,-750.0,0.00029041,2]
[392707874,1761839443343,-3166.6893566,0.00029079,2]
[392707875,1761839443361,-500.0,0.00029166,7]
[392707876,1761839443385,-477.13749083,0.000292,7]
[392707877,1761839443410,-152.0,0.00029286,3]
[392707878,1761839443431,-801.64464025,0.00029312,7]
[392707879,1761839443453,-750.0,0.00029315,2]
[392707880,1761839443477,-750.0,0.00029315,2]
[392707881,1761839443499,-503.70345494,0.00029343,2]
[392707882,1761839443520,-1267.24763701,0.000294,2]
[392707883,1761839443543,-1152.0,0.00029401,2]
[392707884,1761839443565,-171.99289972,0.00029473,5]
[392707885,1761839443582,-504.28891625,0.00029473,5]
[392707886,1761839443591,-160.52033851,0.00029473,5]
[392707887,1761839443601,-501.66973597,0.00029473,5]
[392707888,1761839443610,-160.49104266,0.00029473,2]
[392707889,1761839443619,-500.0,0.00029473,5]
[392707890,1761839443629,-500.0,0.00029473,5]
[392707891,1761839443639,-200.0,0.00029473,5]
[392707892,1761839443649,-500.0,0.00029473,5]
[392707893,1761839443658,-500.0,0.00029473,5]
[392707894,1761839443668,-500.0,0.00029473,5]
[392707895,1761839443677,-26913.1253247,0.0002948,3]
[392707896,1761839443686,-199.0,0.00029489,7]
[392707897,1761839443695,-134565.626623,0.0002949,3]
[392707898,1761839443705,-21249.6827382,0.0002949,3]
[392707899,1761839443714,-60479.35857226,0.000295,2]
[392707900,1761839443895,-606.99966469,0.00022999,2]
[392707901,1761839443905,-337.58024334,0.00022999,2]
[392707902,1761839443915,-54345.44655922,0.000295,2]
[392707903,1761839443927,-8134.40838975,0.000295,2]
[392707904,1761839443939,-758.2,0.000295,2]
[392707905,1761839444907,-150.0,0.00027915,3]
[392707906,1761839444917,-4813.05,0.000295,2]
[392707907,1761839445008,-116098.59981333,0.000295,2]
[392707908,1761839445018,-477.13749083,0.000295,3]
[392707909,1761839445028,-750.0,0.00029589,2]
[392707910,1761839445038,-750.0,0.00029589,2]
[392707911,1761839445047,-500.0,0.0002963,7]
[392707912,1761839445056,-161.60541758,0.00029632,7]
[392707913,1761839445066,-500.0,0.00029718,7]
[392707914,1761839445077,-200.0,0.0002976,2]
[392707915,1761839445091,-199.0,0.00029763,8]
[392707916,1761839445102,-750.0,0.00029863,2]
[392707917,1761839445112,-750.0,0.00029863,2]
[392707918,1761839445123,-450.0,0.0002987,2]
[392707919,1761839445133,-160.53722179,0.0002987,2]
[392707920,1761839445144,-427.5,0.00029882,15]
[392707922,1761839445154,-5000.0,0.0002989,2]
[392707924,1761839445164,-1000.0,0.00029895,2]
[392707926,1761839445174,-26913.1253247,0.00029951,3]
[392707928,1761839445184,-12059.82739474,0.00029951,3]
[392707929,1761839445197,-347.65681638,0.00029951,3]
[392707931,1761839445208,-329.8,0.00029951,3]
[392707936,1761839445741,-150.0,0.00028415,3]
[392707937,1761839445751,-1280.49855661,0.00029951,3]
[392707938,1761839445799,-339.9400011,0.00029951,3]
[392707939,1761839446030,-460.06275707,0.00029951,3]